fUST/lending_fUST_20241217
["ID","MTS","AMOUNT","RATE_DAILY","PERIOD"]
[345587758,1734371446656,-500.0,0.00027671,7]
[345587760,1734371446666,-500.0,0.00027671,2]
[345587762,1734371446675,-237.47849065,0.00027671,7]
[345587764,1734371446689,-500.0,0.00027671,7]
[345587766,1734371446699,-1862.4,0.00027671,7]
[345587768,1734371446709,-1565.33,0.00027671,7]
[345587770,1734371446719,-500.0,0.00027671,7]
[345587772,1734371446728,-500.0,0.00027671,7]
[345587774,1734371446738,-500.0,0.00027671,7]
[345587776,1734371446748,-500.0,0.00027671,7]
[345587778,1734371446757,-500.0,0.00027671,7]
[345587780,1734371446767,-500.0,0.00027671,7]
[345587782,1734371446777,-500.0,0.00027671,7]
[345587784,1734371446790,-500.0,0.00027671,7]
[345587786,1734371446800,-500.0,0.00027671,7]
[345587788,1734371446810,-500.0,0.00027671,7]
[345587790,1734371446820,-500.0,0.00027671,7]
[345587792,1734371446830,-500.0,0.00027671,7]
[345587794,1734371446840,-500.0,0.00027671,7]
[345587796,1734371446850,-500.0,0.00027671,7]
[345587798,1734371446859,-500.99448498,0.00027671,7]
[345587800,1734371446869,-500.0,0.00027671,7]
[345587802,1734371446879,-533.39566696,0.00027671,7]
[345587804,1734371446889,-2390.94,0.00027671,2]
[345587806,1734371446898,-500.0,0.00027671,7]
[345587808,1734371446907,-526.71,0.00027671,7]
[345587810,1734371446917,-500.0,0.00027671,7]
[345587812,1734371446926,-500.0,0.00027671,7]
[345587814,1734371446938,-500.0,0.00027671,7]
[345587816,1734371446948,-518.72237497,0.00027671,7]
[345587818,1734371446958,-500.0,0.00027671,7]
[345587820,1734371446967,-500.0,0.00027671,7]
[345587822,1734371446977,-735.82,0.00027671,7]
[345587836,1734371447103,-500.0,0.00027671,7]
[345587838,1734371447113,-500.0,0.00027671,7]
[345587840,1734371447123,-500.0,0.00027671,7]
[345587842,1734371447133,-838.67,0.00027671,7]
[345587844,1734371447142,-756.65,0.00027671,7]
[345587846,1734371447151,-500.0,0.00027671,7]
[345587848,1734371447161,-500.0,0.00027671,7]
[345587850,1734371447173,-500.0,0.00027671,7]
[345587852,1734371447183,-575.12915802,0.00027671,7]
[345587854,1734371447195,-549.1217483,0.00027671,7]
[345587856,1734371447205,-841.21,0.00027671,7]
[345587858,1734371447216,-500.0,0.00027671,7]
[345587860,1734371447225,-1271.21,0.00027671,7]
[345587862,1734371447235,-500.0,0.00027671,7]
[345587864,1734371447244,-501.89665777,0.00027671,7]
[345587866,1734371447254,-500.0,0.00027671,7]
[345587868,1734371447263,-500.0,0.00027671,7]
[345587870,1734371447273,-500.0,0.00027671,7]
[345587872,1734371447282,-510.65709808,0.00027671,7]
[345587875,1734371447292,-500.0,0.00027671,7]
[345587877,1734371447302,-500.0,0.00027671,7]
[345587879,1734371447311,-500.0,0.00027671,7]
[345587881,1734371447321,-500.0,0.00027671,7]
[345587883,1734371447330,-628.99285002,0.00027671,7]
[345587885,1734371447339,-226.08284791,0.00027671,7]
[345587887,1734371447349,-500.0,0.00027671,7]
[345587889,1734371447358,-500.0,0.00027671,7]
[345587891,1734371447367,-447.76573857,0.00027671,7]
[345587893,1734371447377,-500.0,0.00027671,7]
[345587895,1734371447386,-500.0,0.00027671,7]
[345587897,1734371447396,-500.0,0.00027671,7]
[345587899,1734371447405,-501.78688542,0.00027671,7]
[345587901,1734371447415,-500.0,0.00027671,7]
[345587903,1734371447426,-500.0,0.00027671,7]
[345587905,1734371447438,-500.0,0.00027671,7]
[345587907,1734371447449,-500.0,0.00027671,7]
[345587909,1734371447465,-509.35993541,0.00027671,7]
[345587911,1734371447475,-522.7,0.00027671,7]
[345587913,1734371447486,-500.0,0.00027671,7]
[345587915,1734371447496,-284.61036699,0.00027671,7]
[345587917,1734371447506,-847.65,0.00027671,7]
[345587919,1734371447515,-500.0,0.00027671,7]
[345587921,1734371447525,-500.0,0.00027671,7]
[345587923,1734371447535,-500.0,0.00027671,7]
[345587925,1734371447545,-500.0,0.00027671,7]
[345587927,1734371447556,-815.99,0.00027671,7]
[345587929,1734371447566,-500.0,0.00027671,7]
[345587931,1734371447576,-2558.25,0.00027671,7]
[345587933,1734371447586,-729.86,0.00027671,7]
[345587935,1734371447595,-1000.0,0.00027671,2]
[345587937,1734371447606,-500.0,0.00027671,7]
[345587939,1734371447616,-500.0,0.00027671,2]
[345587941,1734371447625,-500.0,0.00027671,7]
[345587943,1734371447635,-504.37996599,0.00027671,7]
[345587945,1734371447644,-604.55,0.00027671,7]
[345587947,1734371447654,-500.0,0.00027671,7]
[345587949,1734371447663,-480.90798947,0.00027671,7]
[345587952,1734371447674,-500.0,0.00027671,7]
[345587954,1734371447684,-500.0,0.00027671,7]
[345587956,1734371447695,-500.0,0.00027671,7]
[345587958,1734371447705,-723.2,0.00027671,7]
[345587960,1734371447715,-1101.53,0.00027671,7]
[345587961,1734371447724,-500.0,0.00027671,7]
[345587963,1734371447733,-500.0,0.00027671,7]
[345587965,1734371447743,-500.0,0.00027671,7]
[345587967,1734371447752,-500.0,0.00027671,7]
[345587969,1734371447761,-312.398388,0.00027671,7]
[345587971,1734371447771,-500.0,0.00027671,7]
[345587973,1734371447780,-1406.79,0.00027671,7]
[345587975,1734371447793,-500.0,0.00027671,7]
[345587977,1734371447802,-312.398388,0.00027671,7]
[345587980,1734371447812,-500.0,0.00027671,7]
[345587982,1734371447821,-756.67,0.00027671,7]
[345587984,1734371447831,-500.0,0.00027671,7]
[345587986,1734371447841,-500.0,0.00027671,7]
[345587988,1734371447850,-500.0,0.00027671,7]
[345587990,1734371447860,-500.0,0.00027671,7]
[345587992,1734371447870,-500.0,0.00027671,7]
[345587994,1734371447879,-500.0,0.00027671,7]
[345587996,1734371447889,-500.0,0.00027671,7]
[345587998,1734371447898,-500.0,0.00027671,7]
[345588000,1734371447907,-887.07,0.00027671,7]
[345588002,1734371447918,-500.0,0.00027671,7]
[345588004,1734371447927,-500.0,0.00027671,7]
[345588006,1734371447938,-248.72891413,0.00027671,7]
[345588008,1734371447947,-436.0501479,0.00027671,7]
[345588010,1734371447956,-500.0,0.00027671,7]
[345588012,1734371447966,-500.0,0.00027671,7]
[345588014,1734371447975,-500.0,0.00027671,7]
[345588016,1734371447985,-500.0,0.00027671,7]
[345588018,1734371447994,-500.0,0.00027671,7]
[345588019,1734371448003,-729.85,0.00027671,7]
[345588022,1734371448013,-500.0,0.00027671,7]
[345588024,1734371448023,-505.93608036,0.00027671,7]
[345588026,1734371448032,-500.0,0.00027671,7]
[345588027,1734371448042,-505.94389329,0.00027671,7]
[345588029,1734371448051,-500.0,0.00027671,7]
[345588032,1734371448061,-260.87221403,0.00027671,7]
[345588034,1734371448070,-500.0,0.00027671,7]
[345588035,1734371448079,-201.50871245,0.00027671,7]
[345588038,1734371448089,-500.0,0.00027671,7]
[345588039,1734371448099,-535.26,0.00027671,7]
[345588041,1734371448109,-500.0,0.00027671,7]
[345588043,1734371448119,-500.0,0.00027671,7]
[345588045,1734371448129,-500.0,0.00027671,7]
[345588047,1734371448138,-500.0,0.00027671,7]
[345588049,1734371448147,-500.0,0.00027671,7]
[345588052,1734371448157,-456.3676165,0.00027671,7]
[345588053,1734371448166,-523.85,0.00027671,7]
[345588056,1734371448175,-504.16836388,0.00027671,7]
[345588057,1734371448188,-725.83,0.00027671,7]
[345588060,1734371448197,-653.11,0.00027671,7]
[345588061,1734371448207,-500.0,0.00027671,7]
[345588063,1734371448216,-500.0,0.00027671,7]
[345588065,1734371448226,-500.0,0.00027671,7]
[345588067,1734371448236,-938.93,0.00027671,7]
[345588069,1734371448246,-539.62,0.00027671,7]
[345588071,1734371448255,-500.0,0.00027671,7]
[345588074,1734371448266,-601.68,0.00027671,7]
[345588075,1734371448276,-12209.14,0.00027671,7]
[345588077,1734371448286,-500.0,0.00027671,7]
[345588080,1734371448296,-500.0,0.00027671,7]
[345588082,1734371448306,-500.0,0.00027671,7]
[345588084,1734371448316,-500.0,0.00027671,7]
[345588086,1734371448325,-1935.0,0.00027671,7]
[345588088,1734371448335,-500.0,0.00027671,7]
[345588089,1734371448344,-500.0,0.00027671,7]
[345588092,1734371448354,-500.0,0.00027671,7]
[345588094,1734371448364,-500.0,0.00027671,7]
[345588096,1734371448374,-500.0,0.00027671,7]
[345588098,1734371448383,-1037.74,0.00027671,7]
[345588100,1734371448393,-500.0,0.00027671,7]
[345588102,1734371448403,-500.0,0.00027671,2]
[345588104,1734371448412,-500.0,0.00027671,7]
[345588106,1734371448422,-200.0,0.00027671,7]
[345588108,1734371448432,-500.0,0.00027671,7]
[345588110,1734371448447,-500.0,0.00027671,7]
[345588112,1734371448457,-11178.17,0.00027671,7]
[345588114,1734371448468,-500.0,0.00027671,7]
[345588116,1734371448478,-10872.48,0.00027671,7]
[345588118,1734371448488,-500.0,0.00027671,7]
[345588120,1734371448498,-1971.97,0.00027671,7]
[345588122,1734371448508,-645.1137183,0.00027671,7]
[345588124,1734371448517,-500.0,0.00027671,7]
[345588126,1734371448527,-500.0,0.00027671,7]
[345588128,1734371448537,-1274.23,0.00027671,7]
[345588130,1734371448547,-500.0,0.00027671,7]
[345588132,1734371448556,-500.0,0.00027671,7]
[345588134,1734371448566,-500.0,0.00027671,7]
[345588136,1734371448576,-500.0,0.00027671,7]
[345588138,1734371448586,-500.0,0.00027671,7]
[345588140,1734371448595,-503.98414183,0.00027671,7]
[345588142,1734371448605,-500.0,0.00027671,7]
[345588144,1734371448615,-500.0,0.00027671,7]
[345588146,1734371448624,-500.0,0.00027671,7]
[345588148,1734371448635,-500.0,0.00027671,7]
[345588150,1734371448645,-500.0,0.00027671,7]
[345588152,1734371448654,-500.0,0.00027671,7]
[345588154,1734371448663,-16203.79,0.00027671,7]
[345588156,1734371448673,-500.0,0.00027671,7]
[345588158,1734371448683,-500.0,0.00027671,7]
[345588160,1734371448697,-500.0,0.00027671,7]
[345588162,1734371448707,-500.0,0.00027671,7]
[345588165,1734371448716,-500.0,0.00027671,7]
[345588167,1734371448726,-500.0,0.00027671,7]
[345588169,1734371448736,-1779.12,0.00027671,7]
[345588171,1734371448745,-500.0,0.00027671,7]
[345588173,1734371448755,-500.0,0.00027671,7]
[345588175,1734371448765,-500.0,0.00027671,7]
[345588177,1734371448774,-2299.4,0.00027671,7]
[345588179,1734371448785,-500.0,0.00027671,7]
[345588181,1734371448797,-362.36435803,0.00027671,7]
[345588183,1734371448806,-743.24,0.00027671,7]
[345588184,1734371448816,-500.0,0.00027671,7]
[345588187,1734371448825,-2422.2,0.00027671,7]
[345588188,1734371448835,-500.0,0.00027671,7]
[345588190,1734371448845,-867.95,0.00027671,7]
[345588192,1734371448854,-500.0,0.00027671,7]
[345588195,1734371448864,-60984.58,0.00027671,7]
[345588197,1734371448874,-500.0,0.00027671,7]
[345588198,1734371448884,-500.0,0.00027671,7]
[345588201,1734371448894,-500.0,0.00027671,7]
[345588202,1734371448904,-500.0,0.00027671,7]
[345588203,1734371448913,-500.0,0.00027671,7]
[345588204,1734371448923,-500.0,0.00027671,7]
[345588205,1734371448932,-500.0,0.00027671,7]
[345588206,1734371448949,-500.0,0.00027671,7]
[345588207,1734371448959,-500.0,0.00027671,7]
[345588208,1734371448968,-3244.58,0.00027671,5]
[345588209,1734371448980,-500.0,0.00027671,7]
[345588219,1734371449103,-515.45,0.00027671,7]
[345588222,1734371449113,-724.1,0.00027671,7]
[345588224,1734371449123,-500.0,0.00027671,7]
[345588226,1734371449134,-685.04,0.00027671,7]
[345588228,1734371449143,-500.0,0.00027671,7]
[345588229,1734371449153,-2826.45,0.00027671,7]
[345588231,1734371449164,-500.0,0.00027671,7]
[345588233,1734371449174,-500.0,0.00027671,7]
[345588236,1734371449184,-500.0,0.00027671,7]
[345588237,1734371449195,-1595.28,0.00027671,7]
[345588239,1734371449205,-500.0,0.00027671,7]
[345588241,1734371449215,-4941.44,0.00027671,7]
[345588243,1734371449225,-2822.8,0.00027671,7]
[345588245,1734371449235,-500.0,0.00027671,7]
[345588248,1734371449245,-500.0,0.00027671,7]
[345588250,1734371449255,-500.0,0.00027671,7]
[345588252,1734371449265,-825.1,0.00027671,7]
[345588254,1734371449275,-500.0,0.00027671,7]
[345588255,1734371449284,-823.06,0.00027671,7]
[345588258,1734371449294,-500.0,0.00027671,7]
[345588260,1734371449304,-500.0,0.00027671,7]
[345588262,1734371449315,-351.91465477,0.00027671,7]
[345588264,1734371449325,-500.0,0.00027671,7]
[345588266,1734371449335,-2956.46,0.00027671,7]
[345588268,1734371449345,-500.0,0.00027671,7]
[345588270,1734371449354,-500.0,0.00027671,7]
[345588272,1734371449363,-500.0,0.00027671,7]
[345588274,1734371449373,-500.0,0.00027671,7]
[345588276,1734371449382,-151.0,0.00027671,7]
[345588278,1734371449392,-151.0,0.00027671,7]
[345588280,1734371449402,-500.0,0.00027671,7]
[345588282,1734371449413,-500.0,0.00027671,7]
[345588284,1734371449423,-500.0,0.00027671,7]
[345588286,1734371449432,-500.0,0.00027671,7]
[345588288,1734371449446,-3781.28,0.00027671,7]
[345588290,1734371449455,-500.0,0.00027671,7]
[345588292,1734371449464,-547.82,0.00027671,7]
[345588294,1734371449474,-3056.77,0.00027671,7]
[345588297,1734371449484,-500.0,0.00027671,7]
[345588299,1734371449494,-500.0,0.00027671,7]
[345588301,1734371449504,-739.54,0.00027671,2]
[345588303,1734371449513,-628.01,0.00027671,7]
[345588305,1734371449522,-500.0,0.00027671,7]
[345588307,1734371449532,-500.0,0.00027671,7]
[345588309,1734371449541,-1223.27,0.00027671,7]
[345588311,1734371449551,-756.09,0.00027671,7]
[345588313,1734371449560,-500.0,0.00027671,7]
[345588315,1734371449569,-500.0,0.00027671,7]
[345588317,1734371449579,-563.27,0.00027671,7]
[345588319,1734371449589,-500.0,0.00027671,7]
[345588321,1734371449599,-6440.01,0.00027671,7]
[345588323,1734371449609,-500.0,0.00027671,7]
[345588325,1734371449618,-2439.3,0.00027671,7]
[345588327,1734371449628,-500.0,0.00027671,7]
[345588329,1734371449638,-500.0,0.00027671,2]
[345588331,1734371449647,-1667.7,0.00027671,7]
[345588333,1734371449657,-500.0,0.00027671,7]
[345588335,1734371449666,-641.005186,0.00027671,7]
[345588337,1734371449675,-641.005186,0.00027671,7]
[345588340,1734371449688,-641.005186,0.00027671,7]
[345588342,1734371449698,-641.005186,0.00027671,7]
[345588344,1734371449708,-508.35591889,0.00027671,7]
[345588346,1734371449717,-500.0,0.00027671,7]
[345588348,1734371449727,-909.66,0.00027671,7]
[345588350,1734371449737,-660.39,0.00027671,7]
[345588352,1734371449746,-500.0,0.00027671,7]
[345588354,1734371449756,-500.0,0.00027671,7]
[345588356,1734371449766,-500.0,0.00027671,7]
[345588358,1734371449776,-500.0,0.00027673,5]
[345588360,1734371449786,-500.0,0.00027673,5]
[345588362,1734371449801,-503.48791107,0.00027673,5]
[345588365,1734371449811,-500.0,0.00027673,5]
[345588367,1734371449820,-7721.99189971,0.00027691,2]
[345588369,1734371449830,-421.60943739,0.00027799,2]
[345588371,1734371449841,-162.76500062,0.00027808,2]
[345588373,1734371449853,-1385.0,0.0002789,32]
[345588375,1734371449862,-300.0,0.000279,13]
[345588377,1734371449871,-1000.0,0.00027921,5]
[345588379,1734371449880,-1000.0,0.00027921,5]
[345588381,1734371449891,-1212.09865063,0.00027942,2]
[345588383,1734371449900,-151.0,0.00027945,7]
[345588385,1734371449910,-540.97280015,0.00027945,7]
[345588387,1734371449920,-500.0,0.00027945,7]
[345588388,1734371449929,-500.0,0.00027945,7]
[345588391,1734371449940,-500.0,0.00027945,7]
[345588393,1734371449949,-462.53353287,0.00027945,7]
[345588394,1734371449958,-500.0,0.00027945,7]
[345588396,1734371449968,-500.0,0.00027945,7]
[345588399,1734371449980,-151.0,0.00027945,7]
[345588402,1734371449997,-151.0,0.00027945,7]
[345588404,1734371450013,-507.72630803,0.00027945,7]
[345588407,1734371450026,-500.0,0.00027945,7]
[345588410,1734371450041,-500.0,0.00027945,7]
[345588412,1734371450057,-500.0,0.00027945,7]
[345588415,1734371450073,-500.0,0.00027945,7]
[345588418,1734371450088,-500.0,0.00027945,7]
[345588420,1734371450104,-500.0,0.00027945,7]
[345588423,1734371450118,-500.0,0.00027945,7]
[345588425,1734371450131,-151.0,0.00027945,7]
[345588428,1734371450148,-151.0,0.00027945,7]
[345588430,1734371450162,-151.0,0.00027945,7]
[345588433,1734371450174,-151.0,0.00027945,7]
[345588435,1734371450189,-504.58516979,0.00027945,7]
[345588438,1734371450205,-500.0,0.00027945,7]
[345588440,1734371450219,-803.56,0.00027945,7]
[345588443,1734371450234,-500.0,0.00027945,7]
[345588445,1734371450250,-500.0,0.00027945,7]
[345588448,1734371450266,-500.0,0.00027945,7]
[345588450,1734371450279,-506.19223073,0.00027945,7]
[345588453,1734371450290,-901.1,0.00027945,7]
[345588455,1734371450306,-500.0,0.00027945,7]
[345588458,1734371450322,-500.0,0.00027945,7]
[345588460,1734371450336,-500.0,0.00027945,7]
[345588463,1734371450349,-500.0,0.00027945,7]
[345588465,1734371450365,-500.0,0.00027945,7]
[345588468,1734371450377,-500.0,0.00027945,7]
[345588470,1734371450388,-500.0,0.00027945,7]
[345588472,1734371450402,-502.7462003,0.00027945,7]
[345588475,1734371450416,-913.3,0.00027945,7]
[345588477,1734371450429,-500.0,0.00027945,7]
[345588480,1734371450450,-500.0,0.00027945,7]
[345588482,1734371450463,-502.31186232,0.00027945,7]
[345588485,1734371450476,-500.0,0.00027945,7]
[345588487,1734371450491,-500.0,0.00027945,7]
[345588489,1734371450504,-500.0,0.00027945,7]
[345588491,1734371450517,-500.0,0.00027945,7]
[345588494,1734371450529,-1054.1,0.00027945,7]
[345588496,1734371450542,-500.0,0.00027945,7]
[345588498,1734371450556,-500.0,0.00027945,7]
[345588501,1734371450570,-420.68399403,0.00027945,7]
[345588503,1734371450584,-500.0,0.00027945,7]
[345588506,1734371450596,-500.0,0.00027945,7]
[345588508,1734371450610,-500.0,0.00027945,7]
[345588511,1734371450624,-504.77057333,0.00027945,7]
[345588513,1734371450637,-535.19944147,0.00027945,7]
[345588515,1734371450651,-500.0,0.00027945,7]
[345588518,1734371450664,-500.0,0.00027945,7]
[345588520,1734371450677,-717.07,0.00027945,7]
[345588522,1734371450697,-500.0,0.00027945,7]
[345588525,1734371450710,-222.410124,0.00027945,7]
[345588527,1734371450723,-222.410124,0.00027945,7]
[345588530,1734371450737,-193.8090694,0.00027945,7]
[345588532,1734371450750,-222.410124,0.00027945,7]
[345588535,1734371450762,-222.410124,0.00027945,7]
[345588537,1734371450776,-1522.37,0.00027945,7]
[345588540,1734371450793,-151.0,0.00027945,7]
[345588542,1734371450805,-151.0,0.00027945,7]
[345588544,1734371450818,-572.33586906,0.00027945,7]
[345588547,1734371450831,-539.46867924,0.00027945,7]
[345588549,1734371450843,-562.29,0.00027945,7]
[345588551,1734371450856,-500.0,0.00027945,7]
[345588554,1734371450869,-273.32746276,0.00027945,7]
[345588556,1734371450882,-500.0,0.00027945,7]
[345588559,1734371450895,-500.0,0.00027945,7]
[345588561,1734371450909,-500.0,0.00027945,7]
[345588564,1734371450922,-500.0,0.00027945,7]
[345588566,1734371450934,-193.19130187,0.00027945,7]
[345588568,1734371450952,-500.0,0.00027945,7]
[345588571,1734371450964,-840.86,0.00027945,7]
[345588573,1734371450977,-1986.63,0.00027945,7]
[345588576,1734371450990,-500.0,0.00027945,7]
[345588578,1734371451003,-500.0,0.00027945,7]
[345588580,1734371451015,-804.58,0.00027945,7]
[345588583,1734371451029,-500.0,0.00027945,7]
[345588585,1734371451040,-500.0,0.00027945,7]
[345588587,1734371451049,-500.0,0.00027945,7]
[345588589,1734371451059,-151.0,0.00027945,7]
[345588591,1734371451068,-151.0,0.00027945,7]
[345588593,1734371451078,-500.0,0.00027945,7]
[345588595,1734371451088,-514.1989873,0.00027945,7]
[345588597,1734371451098,-500.0,0.00027945,7]
[345588599,1734371451107,-500.0,0.00027945,7]
[345588600,1734371451117,-500.0,0.00027945,7]
[345588601,1734371451126,-500.0,0.00027945,7]
[345588602,1734371451135,-503.76657928,0.00027945,7]
[345588618,1734371451144,-515.38093235,0.00027945,7]
[345588621,1734371451377,-964.54,0.00027945,7]
[345588624,1734371451392,-500.0,0.00027945,7]
[345588626,1734371451402,-507.83893752,0.00027945,7]
[345588628,1734371451413,-168.0,0.00027945,7]
[345588630,1734371451423,-502.50972003,0.00027945,7]
[345588632,1734371451433,-500.0,0.00027945,7]
[345588634,1734371451446,-500.0,0.00027945,7]
[345588636,1734371451455,-519.37895914,0.00027945,7]
[345588638,1734371451465,-535.40842529,0.00027945,7]
[345588640,1734371451474,-1070.91,0.00027945,7]
[345588642,1734371451484,-500.0,0.00027945,7]
[345588644,1734371451494,-500.0,0.00027945,7]
[345588646,1734371451503,-500.0,0.00027945,7]
[345588648,1734371451513,-510.64822328,0.00027945,7]
[345588649,1734371451522,-500.0,0.00027945,7]
[345588651,1734371451532,-500.0,0.00027945,2]
[345588654,1734371451543,-500.0,0.00027945,7]
[345588656,1734371451553,-1862.4,0.00027945,7]
[345588657,1734371451562,-1565.33,0.00027945,7]
[345588660,1734371451573,-500.0,0.00027945,7]
[345588662,1734371451583,-500.0,0.00027945,7]
[345588663,1734371451592,-500.0,0.00027945,7]
[345588666,1734371451601,-500.0,0.00027945,7]
[345588668,1734371451612,-524.55490507,0.00027945,7]
[345588670,1734371451621,-500.0,0.00027945,7]
[345588672,1734371451631,-500.0,0.00027945,7]
[345588674,1734371451641,-500.0,0.00027945,7]
[345588676,1734371451650,-500.0,0.00027945,7]
[345588678,1734371451659,-500.0,0.00027945,7]
[345588680,1734371451669,-500.0,0.00027945,7]
[345588682,1734371451679,-500.0,0.00027945,7]
[345588684,1734371451690,-500.0,0.00027945,7]
[345588686,1734371451699,-500.0,0.00027945,7]
[345588688,1734371451709,-2390.94,0.00027945,2]
[345588690,1734371451718,-500.0,0.00027945,7]
[345588692,1734371451728,-502.93370167,0.00027945,7]
[345588694,1734371451737,-526.71,0.00027945,7]
[345588696,1734371451747,-500.0,0.00027945,7]
[345588698,1734371451757,-500.0,0.00027945,7]
[345588700,1734371451766,-500.0,0.00027945,7]
[345588702,1734371451776,-735.82,0.00027945,7]
[345588704,1734371451786,-500.0,0.00027945,7]
[345588706,1734371451798,-500.0,0.00027945,7]
[345588708,1734371451808,-838.67,0.00027945,7]
[345588710,1734371451817,-756.65,0.00027945,7]
[345588712,1734371451827,-500.0,0.00027945,7]
[345588714,1734371451836,-500.0,0.00027945,7]
[345588716,1734371451846,-500.0,0.00027945,7]
[345588719,1734371451856,-841.21,0.00027945,7]
[345588721,1734371451865,-500.0,0.00027945,7]
[345588723,1734371451875,-1271.21,0.00027945,7]
[345588725,1734371451884,-500.0,0.00027945,7]
[345588727,1734371451893,-500.0,0.00027945,7]
[345588728,1734371451903,-500.0,0.00027945,7]
[345588731,1734371451912,-500.0,0.00027945,7]
[345588733,1734371451921,-500.0,0.00027945,7]
[345588735,1734371451931,-500.0,0.00027945,7]
[345588737,1734371451943,-500.0,0.00027945,7]
[345588739,1734371451952,-500.0,0.00027945,7]
[345588741,1734371451961,-500.0,0.00027945,7]
[345588743,1734371451971,-500.0,0.00027945,7]
[345588744,1734371451980,-506.89356031,0.00027945,7]
[345588746,1734371451989,-500.0,0.00027945,7]
[345588748,1734371451999,-500.0,0.00027945,7]
[345588751,1734371452008,-500.0,0.00027945,7]
[345588753,1734371452018,-600.25360719,0.00027945,7]
[345588755,1734371452028,-500.0,0.00027945,7]
[345588757,1734371452037,-522.7,0.00027945,7]
[345588759,1734371452047,-500.0,0.00027945,7]
[345588761,1734371452056,-847.65,0.00027945,7]
[345588763,1734371452065,-370.88176711,0.00027945,7]
[345588765,1734371452074,-603.98886952,0.00027945,7]
[345588766,1734371452083,-500.0,0.00027945,7]
[345588768,1734371452092,-815.99,0.00027945,7]
[345588770,1734371452102,-500.0,0.00027945,7]
[345588772,1734371452111,-2558.25,0.00027945,7]
[345588775,1734371452123,-729.86,0.00027945,7]
[345588777,1734371452132,-1000.0,0.00027945,2]
[345588779,1734371452141,-503.01646252,0.00027945,7]
[345588781,1734371452150,-500.0,0.00027945,2]
[345588783,1734371452159,-500.0,0.00027945,7]
[345588785,1734371452169,-604.55,0.00027945,7]
[345588787,1734371452178,-500.0,0.00027945,7]
[345588789,1734371452187,-500.0,0.00027945,7]
[345588791,1734371452204,-500.0,0.00027945,7]
[345588793,1734371452223,-500.0,0.00027945,7]
[345588795,1734371452233,-723.2,0.00027945,7]
[345588797,1734371452245,-1101.53,0.00027945,7]
[345588799,1734371452258,-500.0,0.00027945,7]
[345588801,1734371452267,-500.0,0.00027945,7]
[345588803,1734371452277,-500.0,0.00027945,7]
[345588805,1734371452286,-500.0,0.00027945,7]
[345588807,1734371452295,-312.398388,0.00027945,7]
[345588809,1734371452304,-312.398388,0.00027945,7]
[345588811,1734371452314,-176.53064346,0.00027945,7]
[345588812,1734371452324,-1406.79,0.00027945,7]
[345588815,1734371452334,-514.4671532,0.00027945,7]
[345588817,1734371452343,-312.398388,0.00027945,7]
[345588818,1734371452353,-312.398388,0.00027945,7]
[345588820,1734371452363,-500.0,0.00027945,7]
[345588822,1734371452372,-756.67,0.00027945,7]